fUST/lending_fUST_20250223
["ID","MTS","AMOUNT","RATE_DAILY","PERIOD"]
[354149341,1740289841283,-2039.04,0.00014309,2]
[354149343,1740289841292,-500.0,0.00014309,2]
[354149345,1740289841301,-500.0,0.00014309,2]
[354149347,1740289841311,-500.0,0.00014309,2]
[354149349,1740289841319,-1466.4,0.00014309,2]
[354149351,1740289841328,-500.0,0.00014309,2]
[354149353,1740289841337,-602.69,0.00014309,2]
[354149355,1740289841347,-743.83,0.00014309,2]
[354149357,1740289841356,-500.0,0.00014309,2]
[354149359,1740289841365,-500.0,0.00014309,2]
[354149361,1740289841374,-476.0,0.00014309,2]
[354149362,1740289841383,-500.0,0.0001431,2]
[354149364,1740289841392,-500.0,0.0001431,2]
[354149366,1740289841403,-333.19807125,0.0001431,2]
[354149368,1740289841411,-500.0,0.0001431,2]
[354149370,1740289841421,-500.0,0.0001431,2]
[354149372,1740289841430,-500.0,0.0001431,2]
[354149374,1740289841439,-500.0,0.0001431,2]
[354149376,1740289841448,-500.0,0.0001431,2]
[354149378,1740289841458,-500.0,0.0001431,2]
[354149380,1740289841467,-375.4725287,0.0001431,2]
[354149382,1740289841478,-500.0,0.0001431,2]
[354149384,1740289841487,-500.0,0.0001431,2]
[354149386,1740289841496,-500.0,0.0001431,2]
[354149388,1740289841505,-500.0,0.0001431,2]
[354149390,1740289841514,-217.61967346,0.0001431,2]
[354149392,1740289841523,-500.0,0.0001431,2]
[354149393,1740289841532,-500.0,0.0001431,2]
[354149395,1740289841542,-500.0,0.0001431,2]
[354149397,1740289841551,-216.07203135,0.0001431,2]
[354149400,1740289841561,-500.0,0.0001431,2]
[354149402,1740289841570,-500.0,0.0001431,2]
[354149403,1740289841579,-579.15425206,0.0001431,2]
[354149405,1740289841588,-500.0,0.00014312,2]
[354149407,1740289841597,-500.0,0.00014312,2]
[354149409,1740289841606,-500.0,0.00014312,2]
[354149411,1740289841616,-514.88140452,0.00014312,2]
[354149413,1740289841625,-505.69988613,0.00014312,2]
[354149415,1740289841634,-500.0,0.00014312,2]
[354149417,1740289841643,-500.0,0.00014312,2]
[354149419,1740289841652,-505.99557686,0.00014312,2]
[354149422,1740289841662,-500.0,0.00014312,2]
[354149424,1740289841671,-500.0,0.00014392,2]
[354149425,1740289841681,-500.0,0.00014392,2]
[354149427,1740289841690,-500.0,0.00014392,2]
[354149430,1740289841699,-506.61,0.00014392,2]
[354149432,1740289841708,-500.0,0.00014392,2]
[354149434,1740289841717,-500.0,0.00014392,2]
[354149436,1740289841727,-1086.3,0.00014392,2]
[354149437,1740289841736,-500.0,0.00014392,2]
[354149439,1740289841745,-500.0,0.00014392,2]
[354149441,1740289841754,-500.0,0.00014392,2]
[354149443,1740289841763,-500.0,0.00014392,2]
[354149445,1740289841772,-500.0,0.00014392,2]
[354149448,1740289841781,-614.2,0.00014392,2]
[354149449,1740289841790,-500.0,0.00014392,2]
[354149452,1740289841799,-2498.26,0.00014392,2]
[354149454,1740289841813,-500.0,0.00014392,2]
[354149456,1740289841822,-540.80948961,0.00014392,2]
[354149458,1740289841831,-500.0,0.00014392,2]
[354149460,1740289841840,-500.0,0.00014392,2]
[354149462,1740289841849,-484.88257258,0.00014392,2]
[354149464,1740289841858,-500.0,0.00014392,2]
[354149466,1740289841867,-3690.97,0.00014392,2]
[354149468,1740289841876,-500.0,0.00014392,2]
[354149470,1740289841886,-328.76146908,0.00014392,2]
[354149472,1740289841895,-821.12,0.00014392,2]
[354149474,1740289841903,-8801.64,0.00014392,2]
[354149475,1740289841912,-2039.04,0.00014392,2]
[354149477,1740289841921,-500.0,0.00014392,2]
[354149479,1740289841930,-500.0,0.00014392,2]
[354149481,1740289841938,-500.0,0.00014392,2]
[354149483,1740289841947,-1466.4,0.00014392,2]
[354149485,1740289841956,-221.97517115,0.00014392,2]
[354149487,1740289841966,-602.69,0.00014392,2]
[354149490,1740289841975,-743.83,0.00014392,2]
[354149492,1740289841984,-500.0,0.00014392,2]
[354149494,1740289841994,-500.0,0.00014392,2]
[354149496,1740289842003,-500.0,0.00014393,2]
[354149498,1740289842012,-500.0,0.00014393,2]
[354149499,1740289842021,-174.89905902,0.00014393,2]
[354149501,1740289842030,-500.0,0.00014393,2]
[354149503,1740289842040,-577.19376363,0.00014393,2]
[354149505,1740289842049,-500.0,0.00014393,2]
[354149507,1740289842059,-500.0,0.00014393,2]
[354149509,1740289842068,-500.0,0.00014393,2]
[354149511,1740289842077,-332.02882842,0.00014393,2]
[354149513,1740289842086,-500.0,0.00014393,2]
[354149515,1740289842095,-500.0,0.00014393,2]
[354149518,1740289842104,-500.0,0.00014393,2]
[354149519,1740289842113,-500.0,0.00014393,2]
[354149521,1740289842122,-438.45457882,0.00014393,2]
[354149524,1740289842131,-500.0,0.00014393,2]
[354149526,1740289842140,-500.0,0.00014394,2]
[354149527,1740289842149,-558.14935204,0.00014394,2]
[354149529,1740289842160,-500.0,0.00014394,2]
[354149532,1740289842170,-500.0,0.00014394,2]
[354149533,1740289842179,-500.0,0.00014394,2]
[354149535,1740289842189,-500.0,0.00014394,2]
[354149537,1740289842199,-500.0,0.00014474,2]
[354149539,1740289842208,-621.53231473,0.00014474,2]
[354149541,1740289842216,-500.0,0.00014474,2]
[354149543,1740289842226,-506.61,0.00014474,2]
[354149545,1740289842235,-500.0,0.00014474,2]
[354149548,1740289842245,-500.0,0.00014474,2]
[354149550,1740289842254,-1086.3,0.00014474,2]
[354149552,1740289842264,-500.0,0.00014474,2]
[354149554,1740289842274,-500.0,0.00014474,2]
[354149555,1740289842283,-500.0,0.00014474,2]
[354149557,1740289842292,-497.9831486,0.00014474,2]
[354149560,1740289842302,-500.0,0.00014474,2]
[354149561,1740289842312,-614.2,0.00014474,2]
[354149564,1740289842321,-500.0,0.00014474,2]
[354149565,1740289842330,-2498.26,0.00014474,2]
[354149567,1740289842339,-500.0,0.00014474,2]
[354149571,1740289842348,-500.0,0.00014474,2]
[354149582,1740289842429,-500.0,0.00014474,2]
[354149586,1740289842449,-500.0,0.00014474,2]
[354149588,1740289842459,-3690.97,0.00014474,2]
[354149589,1740289842467,-500.0,0.00014474,2]
[354149591,1740289842478,-821.12,0.00014474,2]
[354149593,1740289842487,-8801.64,0.00014474,2]
[354149595,1740289842496,-2039.04,0.00014474,2]
[354149597,1740289842506,-500.0,0.00014474,2]
[354149599,1740289842514,-500.0,0.00014474,2]
[354149601,1740289842523,-500.0,0.00014474,2]
[354149603,1740289842533,-1466.4,0.00014474,2]
[354149605,1740289842542,-602.69,0.00014474,2]
[354149607,1740289842551,-743.83,0.00014474,2]
[354149609,1740289842560,-500.0,0.00014474,2]
[354149611,1740289842569,-608.12057534,0.00014475,2]
[354149613,1740289842579,-500.0,0.00014475,2]
[354149615,1740289842588,-500.0,0.00014475,2]
[354149617,1740289842597,-500.0,0.00014475,2]
[354149619,1740289842606,-500.0,0.00014475,2]
[354149621,1740289842615,-527.59845837,0.00014475,2]
[354149623,1740289842625,-424.15418371,0.00014475,2]
[354149625,1740289842634,-500.0,0.00014475,2]
[354149627,1740289842643,-500.0,0.00014475,2]
[354149629,1740289842652,-500.0,0.00014475,2]
[354149631,1740289842661,-500.0,0.00014475,2]
[354149632,1740289842671,-500.0,0.00014476,2]
[354149634,1740289842680,-500.0,0.00014476,2]
[354149636,1740289842690,-500.0,0.00014476,2]
[354149638,1740289842700,-500.0,0.00014476,2]
[354149640,1740289842710,-500.0,0.00014556,2]
[354149642,1740289842720,-500.0,0.00014556,2]
[354149644,1740289842729,-506.61,0.00014556,2]
[354149646,1740289842738,-588.31,0.00014556,2]
[354149648,1740289842747,-500.0,0.00014556,2]
[354149650,1740289842755,-1086.3,0.00014556,2]
[354149652,1740289842764,-500.0,0.00014556,2]
[354149654,1740289842774,-500.0,0.00014556,2]
[354149656,1740289842783,-500.0,0.00014556,2]
[354149658,1740289842793,-500.0,0.00014556,2]
[354149660,1740289842803,-614.2,0.00014556,2]
[354149662,1740289842817,-500.0,0.00014556,2]
[354149664,1740289842826,-2498.26,0.00014556,2]
[354149666,1740289842835,-500.0,0.00014556,2]
[354149668,1740289842844,-500.0,0.00014556,2]
[354149670,1740289842854,-500.0,0.00014556,2]
[354149672,1740289842863,-500.0,0.00014556,2]
[354149674,1740289842873,-3690.97,0.00014556,2]
[354149676,1740289842882,-500.0,0.00014556,2]
[354149678,1740289842892,-821.12,0.00014556,2]
[354149680,1740289842902,-8801.64,0.00014556,2]
[354149682,1740289842911,-2039.04,0.00014556,2]
[354149684,1740289842920,-500.0,0.00014556,2]
[354149686,1740289842929,-500.0,0.00014556,2]
[354149688,1740289842938,-500.0,0.00014556,2]
[354149690,1740289842947,-1466.4,0.00014556,2]
[354149693,1740289842956,-602.69,0.00014556,2]
[354149695,1740289842966,-743.83,0.00014556,2]
[354149697,1740289842975,-500.0,0.00014556,2]
[354149699,1740289842984,-500.0,0.00014557,2]
[354149701,1740289842993,-500.0,0.00014557,2]
[354149703,1740289843003,-500.0,0.00014557,2]
[354149705,1740289843012,-624.46962336,0.00014557,2]
[354149707,1740289843021,-500.0,0.00014557,2]
[354149709,1740289843030,-500.0,0.00014557,2]
[354149711,1740289843039,-500.0,0.00014557,2]
[354149713,1740289843048,-500.0,0.00014557,2]
[354149715,1740289843058,-500.0,0.00014558,2]
[354149717,1740289843067,-505.22082809,0.00014558,2]
[354149719,1740289843077,-519.32224101,0.00014558,2]
[354149721,1740289843087,-500.0,0.00014558,2]
[354149723,1740289843096,-12574.27545698,0.00014628,2]
[354149725,1740289843105,-500.0,0.00014638,2]
[354149727,1740289843114,-450.54,0.00014638,2]
[354149729,1740289843125,-506.61,0.00014638,2]
[354149731,1740289843134,-500.0,0.00014638,2]
[354149733,1740289843144,-1086.3,0.00014638,2]
[354149735,1740289843153,-500.0,0.00014638,2]
[354149738,1740289843162,-500.0,0.00014638,2]
[354149740,1740289843172,-500.0,0.00014638,2]
[354149742,1740289843181,-614.2,0.00014638,2]
[354149743,1740289843190,-500.0,0.00014638,2]
[354149745,1740289843200,-2498.26,0.00014638,2]
[354149747,1740289843209,-500.0,0.00014638,2]
[354149749,1740289843218,-500.0,0.00014638,2]
[354149751,1740289843228,-500.0,0.00014638,2]
[354149753,1740289843238,-500.0,0.00014638,2]
[354149755,1740289843247,-3690.97,0.00014638,2]
[354149757,1740289843257,-500.0,0.00014638,2]
[354149759,1740289843266,-821.12,0.00014638,2]
[354149761,1740289843276,-8801.64,0.00014638,2]
[354149763,1740289843286,-2039.04,0.00014638,2]
[354149765,1740289843296,-500.0,0.00014638,2]
[354149767,1740289843305,-500.0,0.00014638,2]
[354149769,1740289843315,-500.0,0.00014638,2]
[354149771,1740289843325,-1466.4,0.00014638,2]
[354149773,1740289843334,-602.69,0.00014638,2]
[354149775,1740289843343,-743.83,0.00014638,2]
[354149777,1740289843353,-500.0,0.00014638,2]
[354149779,1740289843362,-208.65,0.00014639,2]
[354149781,1740289843371,-486.99142907,0.00014639,2]
[354149783,1740289843382,-500.0,0.00014639,2]
[354149785,1740289843393,-500.0,0.00014639,2]
[354149787,1740289843403,-500.0,0.00014639,2]
[354149789,1740289843412,-500.0,0.00014639,2]
[354149792,1740289843423,-506.4215794,0.00014639,2]
[354149794,1740289843432,-500.0,0.0001464,2]
[354149796,1740289843442,-500.0,0.0001464,2]
[354149798,1740289843452,-5665.48500306,0.00014652,2]
[354149800,1740289843461,-219.0182236,0.00014688,2]
[354149802,1740289843471,-153.0,0.000147,2]
[354149804,1740289843483,-306.0,0.000147,2]
[354149806,1740289843491,-153.0,0.000147,2]
[354149808,1740289843501,-774.9129227,0.000147,2]
[354149810,1740289843511,-309.592814,0.000147,2]
[354149812,1740289843520,-358.7126771,0.000147,2]
[354149814,1740289843530,-318.69378289,0.0001472,2]
[354149816,1740289843540,-506.61,0.0001472,2]
[354149818,1740289843549,-500.0,0.0001472,2]
[354149820,1740289843558,-1086.3,0.0001472,2]
[354149822,1740289843567,-500.0,0.0001472,2]
[354149823,1740289843577,-500.0,0.0001472,2]
[354149824,1740289843585,-500.0,0.0001472,2]
[354149825,1740289843595,-614.2,0.0001472,2]
[354149826,1740289843604,-500.0,0.0001472,2]
[354149827,1740289843613,-2498.26,0.0001472,2]
[354149829,1740289843622,-500.0,0.0001472,2]
[354149831,1740289843632,-500.0,0.0001472,2]
[354149833,1740289843641,-500.0,0.0001472,2]
[354149835,1740289843650,-500.0,0.0001472,2]
[354149837,1740289843659,-3690.97,0.0001472,2]
[354149839,1740289843668,-500.0,0.0001472,2]
[354149841,1740289843677,-821.12,0.0001472,2]
[354149843,1740289843686,-8801.64,0.0001472,2]
[354149845,1740289843695,-2039.04,0.0001472,2]
[354149847,1740289843705,-500.0,0.0001472,2]
[354149849,1740289843714,-500.0,0.0001472,2]
[354149851,1740289843724,-500.0,0.0001472,2]
[354149853,1740289843734,-1466.4,0.0001472,2]
[354149855,1740289843743,-602.69,0.0001472,2]
[354149857,1740289843752,-743.83,0.0001472,2]
[354149859,1740289843762,-500.0,0.0001472,2]
[354149861,1740289843772,-624.38,0.00014721,2]
[354149863,1740289843781,-500.0,0.00014721,2]
[354149865,1740289843790,-500.0,0.00014721,2]
[354149867,1740289843799,-500.0,0.00014721,2]
[354149869,1740289843813,-500.0,0.00014723,2]
[354149871,1740289843824,-500.86135651,0.00014723,2]
[354149873,1740289843833,-506.61,0.00014803,2]
[354149875,1740289843842,-500.0,0.00014803,2]
[354149877,1740289843853,-1086.3,0.00014803,2]
[354149879,1740289843864,-500.0,0.00014803,2]
[354149881,1740289843873,-500.0,0.00014803,2]
[354149883,1740289843883,-500.0,0.00014803,2]
[354149885,1740289843893,-614.2,0.00014803,2]
[354149887,1740289843902,-244.75050999,0.00014803,2]
[354149889,1740289843912,-2498.26,0.00014803,2]
[354149891,1740289843921,-500.0,0.00014803,2]
[354149893,1740289843931,-500.0,0.00014803,2]
[354149895,1740289843940,-500.0,0.00014803,2]
[354149897,1740289843949,-500.0,0.00014803,2]
[354149899,1740289843959,-3690.97,0.00014803,2]
[354149901,1740289843968,-500.0,0.00014803,2]
[354149903,1740289843977,-821.12,0.00014803,2]
[354149905,1740289843986,-8801.64,0.00014803,2]
[354149907,1740289843995,-2039.04,0.00014803,2]
[354149909,1740289844004,-500.0,0.00014803,2]
[354149911,1740289844013,-334.16519601,0.00014803,2]
[354149913,1740289844023,-500.0,0.00014803,2]
[354149915,1740289844032,-1466.4,0.00014803,2]
[354149917,1740289844042,-602.69,0.00014803,2]
[354149919,1740289844051,-743.83,0.00014803,2]
[354149921,1740289844062,-500.0,0.00014803,2]
[354149923,1740289844074,-500.0,0.00014804,2]
[354149925,1740289844083,-500.0,0.00014804,2]
[354149927,1740289844092,-500.0,0.00014804,2]
[354149929,1740289844101,-164.17,0.00014805,2]
[354149931,1740289844110,-500.0,0.00014873,2]
[354149933,1740289844119,-500.0,0.00014873,2]
[354149935,1740289844128,-500.10290801,0.00014873,2]
[354149937,1740289844138,-505.25354362,0.00014873,2]
[354149939,1740289844148,-501.01108224,0.00014873,2]
[354149941,1740289844157,-500.92782265,0.00014873,2]
[354149943,1740289844166,-622.1309853,0.00014873,2]
[354149945,1740289844175,-500.78601293,0.00014873,2]
[354149947,1740289844185,-500.0,0.00014873,2]
[354149949,1740289844195,-251.51484246,0.00014873,2]
[354149951,1740289844204,-500.0,0.00014873,2]
[354149953,1740289844213,-500.0,0.00014873,2]
[354149955,1740289844223,-500.0,0.00014873,2]
[354149957,1740289844232,-171.12504259,0.00014873,2]
[354149959,1740289844242,-500.0,0.00014873,2]
[354149961,1740289844251,-500.0,0.00014873,2]
[354149963,1740289844260,-509.04158611,0.00014873,2]
[354149965,1740289844269,-500.0,0.00014873,2]
[354149967,1740289844278,-156.90533495,0.00014873,2]
[354149969,1740289844287,-500.0,0.00014873,2]
[354149971,1740289844297,-506.61,0.00014885,2]
[354149973,1740289844306,-500.0,0.00014885,2]
[354149975,1740289844316,-1086.3,0.00014885,2]
[354149977,1740289844325,-500.0,0.00014885,2]
[354149979,1740289844335,-500.0,0.00014885,2]
[354149981,1740289844344,-500.0,0.00014885,2]
[354149983,1740289844354,-614.2,0.00014885,2]
[354149985,1740289844364,-2498.26,0.00014885,2]
[354149987,1740289844373,-500.0,0.00014885,2]
[354149989,1740289844383,-500.0,0.00014885,2]
[354149991,1740289844391,-500.0,0.00014885,2]
[354149993,1740289844401,-500.0,0.00014885,2]
[354149995,1740289844410,-3690.97,0.00014885,2]
[354149997,1740289844420,-500.0,0.00014885,2]
[354149999,1740289844430,-821.12,0.00014885,2]
[354150001,1740289844439,-8801.64,0.00014885,2]
[354150003,1740289844449,-2039.04,0.00014885,2]
[354150005,1740289844459,-500.0,0.00014885,2]
[354150007,1740289844468,-500.0,0.00014885,2]
[354150009,1740289844478,-1466.4,0.00014885,2]
[354150011,1740289844487,-602.69,0.00014885,2]
[354150013,1740289844496,-743.83,0.00014885,2]
[354150015,1740289844506,-500.0,0.00014885,2]
[354150017,1740289844515,-501.78076125,0.00014886,2]
[354150019,1740289844524,-500.0,0.00014886,2]
[354150021,1740289844534,-500.0,0.00014886,2]
[354150031,1740289844619,-500.0,0.00014886,2]
[354150034,1740289844629,-3000.0,0.00014898,2]
[354150036,1740289844639,-500.0,0.00014899,2]
[354150038,1740289844649,-249.60907265,0.00014899,2]
[354150040,1740289844659,-3853.83201779,0.000149,5]
[354150042,1740289844668,-6799.87319459,0.000149,5]
[354150044,1740289844677,-2500.0,0.000149,2]
[354150046,1740289844686,-205.819615,0.000149,2]
[354150048,1740289844696,-1628.79865643,0.000149,2]
[354150050,1740289844705,-151.0,0.000149,2]
[354150052,1740289844714,-161.024132,0.000149,2]
[354150054,1740289844723,-151.0,0.000149,2]
[354150056,1740289844732,-151.0,0.000149,2]
[354150058,1740289844741,-272714.52561862,0.000149,2]
[354150071,1740289844853,-8237.15864384,0.000149,2]
[354150073,1740289844865,-11289.01701524,0.000149,2]
[354150075,1740289844877,-947.87634498,0.000149,2]
[354150077,1740289844889,-2007.12321832,0.000149,2]
[354150079,1740289844899,-151.0,0.000149,2]
[354150081,1740289844908,-151.0,0.000149,2]
[354150083,1740289844917,-25.40531823,0.000149,2]
[354150086,1740289844929,-125.59468177,0.000149,2]
[354150088,1740289844938,-173.689,0.00014923,2]
[354150090,1740289844949,-450.30139152,0.00014967,2]
[354150180,1740289845790,-56.30860848,0.00014967,2]
[354150182,1740289845799,-500.0,0.00014967,2]
[354150184,1740289845809,-419.69139152,0.00014967,2]
[354151225,1740291032396,-2986.8135907,0.00013226,2]
[354151227,1740291032406,-500.3315808,0.00013248,2]
[354151229,1740291032415,-163.51248244,0.00014125,2]
[354151231,1740291032424,-500.0,0.00014164,2]
[354151233,1740291032434,-300.0,0.00014223,2]
[354151235,1740291032443,-500.0,0.00014224,2]
[354151237,1740291032453,-500.0,0.00014224,2]
[354151239,1740291032462,-701.04,0.00014224,2]
[354151241,1740291032472,-1222.0,0.00014224,2]
[354151243,1740291032481,-527.35,0.00014224,2]
[354151245,1740291032491,-650.85,0.00014224,2]
[354151247,1740291032500,-108.08234606,0.00014224,2]
[354151661,1740291038042,-391.91765394,0.00014224,2]
[354151662,1740291038052,-500.0,0.00014224,2]
[354151663,1740291038062,-427.27698368,0.00014224,2]
[354151664,1740291038074,-72.72301632,0.00014224,2]
[354151665,1740291038084,-500.0,0.00014224,2]
[354151666,1740291038094,-500.0,0.00014224,2]
[354151667,1740291038103,-500.0,0.00014224,2]
[354151668,1740291038113,-507.58934431,0.00014225,2]
[354151669,1740291038123,-453.39239601,0.00014225,2]
[354151670,1740291038132,-200.0,0.00014225,2]
[354151671,1740291038142,-500.0,0.00014225,2]
[354151672,1740291038151,-500.0,0.00014225,2]
[354151673,1740291038160,-500.0,0.00014225,2]
[354151674,1740291038169,-500.0,0.00014225,2]
[354151675,1740291038178,-500.0,0.00014225,2]
[354151676,1740291038187,-500.0,0.00014225,2]
[354151677,1740291038196,-500.0,0.00014225,2]
[354151678,1740291038205,-533.17,0.00014225,2]
[354151679,1740291038214,-500.0,0.00014225,2]
[354151680,1740291038223,-500.0,0.00014225,2]
[354151681,1740291038233,-500.0,0.00014225,2]
[354151682,1740291038246,-646.88448559,0.00014225,2]
[354151683,1740291038255,-500.0,0.00014225,2]
[354151684,1740291038264,-500.0,0.00014225,2]
[354151685,1740291038275,-505.49796428,0.00014225,2]
[354151686,1740291038284,-500.0,0.00014225,2]
[354151687,1740291038293,-500.0,0.00014225,2]
[354151688,1740291038302,-500.0,0.00014225,2]
[354151689,1740291038311,-1725.15868898,0.00014225,2]
[354151690,1740291038324,-581.69131102,0.00014225,2]
[354151691,1740291038334,-500.0,0.00014225,2]
[354151692,1740291038343,-500.0,0.00014225,2]
[354151693,1740291038352,-500.0,0.00014225,2]
[354151694,1740291038361,-501.17249632,0.00014225,2]
[354151695,1740291038371,-500.0,0.00014225,2]
[354151696,1740291038380,-500.0,0.00014225,2]
[354151697,1740291038389,-500.0,0.00014225,2]
[354151698,1740291038398,-398.31094337,0.00014225,2]
[354151699,1740291038408,-797.23,0.00014225,2]
[354151700,1740291038418,-500.0,0.00014225,2]
[354151701,1740291038427,-500.0,0.00014225,2]
[354151702,1740291038436,-500.0,0.00014225,2]
[354151703,1740291038446,-500.0,0.00014225,2]
[354151704,1740291038455,-500.0,0.00014225,2]
[354151705,1740291038464,-500.0,0.00014225,2]
[354151706,1740291038473,-500.0,0.00014225,2]
[354151707,1740291038482,-500.0,0.00014225,2]
[354151708,1740291038492,-500.0,0.00014225,2]
[354151709,1740291038501,-500.0,0.00014225,2]
[354151710,1740291038510,-500.0,0.00014225,2]
[354151711,1740291038519,-500.0,0.00014225,2]
[354151712,1740291038528,-500.0,0.00014225,2]
[354151713,1740291038538,-500.0,0.00014225,2]
[354151714,1740291038547,-500.0,0.00014225,2]
[354151715,1740291038556,-500.0,0.00014225,2]
[354151716,1740291038565,-500.0,0.00014225,2]
[354151717,1740291038574,-1108.05243127,0.00014225,2]
[354151718,1740291038585,-765.64756873,0.00014225,2]
[354151723,1740291038595,-500.0,0.00014225,2]
[354151725,1740291038711,-500.0,0.00014225,2]
[354151727,1740291038720,-500.0,0.00014225,2]
[354151729,1740291038730,-500.0,0.00014225,2]
[354151731,1740291038740,-500.0,0.00014225,2]
[354151733,1740291038749,-6733.16,0.00014225,2]
[354151735,1740291038758,-506.4215794,0.00014225,2]
[354151737,1740291038767,-500.0,0.00014225,2]
[354151740,1740291038777,-500.0,0.00014225,2]
[354151742,1740291038786,-1614.24,0.00014225,2]
[354151743,1740291038797,-500.0,0.00014225,2]
[354151745,1740291038807,-500.0,0.00014225,2]
[354151747,1740291038816,-500.0,0.00014225,2]
[354151749,1740291038826,-500.0,0.00014225,2]
[354151751,1740291038835,-500.0,0.00014225,2]
[354151753,1740291038844,-500.0,0.00014225,2]
[354151755,1740291038854,-500.0,0.00014225,2]
[354151757,1740291038863,-1000.0,0.00014225,2]
[354151759,1740291038872,-509.22186676,0.00014225,2]
[354151761,1740291038881,-500.0,0.00014226,2]
[354151763,1740291038891,-500.0,0.00014226,2]
[354151765,1740291038900,-500.0,0.00014227,2]
[354151767,1740291038909,-500.0,0.00014227,2]
[354151769,1740291038919,-500.0,0.00014227,2]
[354151771,1740291038927,-500.0,0.00014227,2]
[354151773,1740291038937,-500.0,0.00014306,2]
[354151775,1740291038946,-500.0,0.00014306,2]
[354151777,1740291038955,-701.04,0.00014306,2]
[354151779,1740291038964,-1222.0,0.00014306,2]
[354151781,1740291038973,-527.35,0.00014306,2]
[354151783,1740291038983,-650.85,0.00014306,2]
[354151785,1740291038992,-500.0,0.00014306,2]
[354151787,1740291039001,-500.0,0.00014306,2]
[354151789,1740291039010,-500.0,0.00014306,2]
[354151791,1740291039019,-115.36103954,0.00014306,2]
[354151793,1740291039030,-384.63896046,0.00014306,2]
[354151795,1740291039039,-132.89103474,0.00014306,2]
[354151797,1740291039050,-367.10896526,0.00014306,2]
[354151799,1740291039059,-500.0,0.00014306,2]
[354151801,1740291039069,-500.0,0.00014307,2]
[354151803,1740291039078,-500.0,0.00014307,2]
[354151805,1740291039087,-500.0,0.00014307,2]
[354151807,1740291039096,-478.99943657,0.00014307,2]
[354151809,1740291039105,-500.0,0.00014307,2]
[354151811,1740291039114,-2306.85,0.00014307,2]
[354151813,1740291039124,-797.23,0.00014307,2]
[354151815,1740291039133,-500.0,0.00014307,2]
[354151816,1740291039142,-500.0,0.00014307,2]
[354151818,1740291039151,-500.0,0.00014307,2]
[354151820,1740291039160,-500.0,0.00014307,2]
[354151822,1740291039170,-500.0,0.00014307,2]
[354151824,1740291039179,-500.0,0.00014307,2]
[354151826,1740291039188,-500.0,0.00014307,2]
[354151828,1740291039198,-500.0,0.00014307,2]
[354151830,1740291039207,-244.75050999,0.00014307,2]
[354151832,1740291039216,-500.0,0.00014307,2]
[354151834,1740291039225,-500.0,0.00014307,2]
[354151837,1740291039238,-500.0,0.00014307,2]
[354151838,1740291039248,-1873.7,0.00014307,2]
[354151841,1740291039257,-500.0,0.00014307,2]
[354151842,1740291039267,-500.0,0.00014307,2]
[354151844,1740291039276,-1000.71917493,0.00014307,2]
[354151954,1740291040332,-500.0,0.00014225,2]
[354151956,1740291040342,-5732.44082507,0.00014307,2]
[354151958,1740291040352,-500.0,0.00014307,2]